fUSD/lending_fUSD_20260424
["ID","MTS","AMOUNT","RATE_DAILY","PERIOD"]
[421098415,1777041033228,-310120.85956888,8.4e-05,2]
[421098416,1777041033248,-8949.52998,8.4e-05,2]
[421098417,1777041033296,-1576.259482,8.4e-05,2]
[421098418,1777041033309,-302.25711256,8.4e-05,2]
[421098419,1777041033328,-79155.9662643,8.4e-05,2]
[421098420,1777041033340,-84604.26941591,8.4e-05,2]
[421098421,1777041033351,-18477.67417635,8.4e-05,2]
[421098422,1777041033361,-18492.9141,8.4e-05,2]
[421098423,1777041033372,-150.0,8.402e-05,2]
[421098424,1777041033382,-150.0,8.422e-05,2]
[421098425,1777041033392,-150.0,8.443e-05,2]
[421098426,1777041033402,-6969.13011454,8.444e-05,2]
[421098427,1777041033412,-150.0,8.463e-05,2]
[421098428,1777041033422,-150.0,8.468e-05,2]
[421098429,1777041033432,-150.0,8.468e-05,2]
[421098430,1777041033441,-150.0,8.468e-05,2]
[421098431,1777041033452,-150.0,8.483e-05,2]
[421098432,1777041033462,-150.0,8.492e-05,2]
[421098433,1777041033472,-618.37299919,8.494e-05,2]
[421098434,1777041033481,-1000.0,8.499e-05,2]
[421098435,1777041033494,-71656.94763347,8.5e-05,2]
[421098436,1777041033506,-1254.41808677,8.5e-05,2]
[421098446,1777041038440,-397.42042561,8.5e-05,2]
[421098447,1777041038465,-346.25817331,8.5e-05,2]
[421098448,1777041038476,-610.37527883,8.5e-05,2]
[421098449,1777041038495,-8460.0,8.5e-05,2]
[421098450,1777041038507,-38734.47537253,8.5e-05,2]
[421098451,1777041038517,-150.0,8.503e-05,2]
[421098452,1777041038527,-150.0,8.523e-05,2]
[421098453,1777041038541,-160.0,8.526e-05,2]
[421098454,1777041038552,-175.043269,8.526e-05,2]
[421098455,1777041038562,-190.086539,8.526e-05,2]
[421098456,1777041038571,-300.239235,8.526e-05,2]
[421098457,1777041038581,-168.678062,8.526e-05,2]
[421098458,1777041038591,-232.912862,8.526e-05,2]
[421098459,1777041038601,-216.469682,8.526e-05,2]
[421098460,1777041038611,-167.927997,8.526e-05,2]
[421098461,1777041038621,-334.440213,8.526e-05,2]
[421098462,1777041038631,-365.064268,8.526e-05,2]
[421098463,1777041038641,-4735.89715988,8.533e-05,2]
[421098464,1777041038652,-500.0,8.533e-05,2]
[421098465,1777041038662,-250.0,8.533e-05,2]
[421098466,1777041038673,-384.22620767,8.533e-05,2]
[421098467,1777041038684,-349.94711781,8.533e-05,2]
[421098468,1777041038696,-1834.85887066,8.533e-05,2]
[421098469,1777041038708,-665.14112934,8.533e-05,2]
[421098470,1777041038719,-2500.0,8.533e-05,2]
[421098471,1777041038729,-2500.0,8.533e-05,2]
[421098472,1777041038739,-4939.27785844,8.54e-05,2]
[421098473,1777041039726,-60.72214156,8.54e-05,2]
[421098474,1777041039736,-1745.46026875,8.54e-05,2]
[421098475,1777041040309,-3254.53973125,8.54e-05,2]
[421098476,1777041040319,-615.76458922,8.54e-05,2]
[421098477,1777041040329,-2500.0,8.54e-05,2]
[421098478,1777041040339,-150.0,8.544e-05,2]
[421098479,1777041040349,-1801.41346051,8.555e-05,2]
[421098480,1777041040358,-15.78921902,8.555e-05,2]
[421098490,1777041045663,-404.68132808,8.555e-05,2]
[421098491,1777041045673,-2311.69622628,8.555e-05,2]
[421098492,1777041045825,-3103.0,8.555e-05,2]
[421098493,1777041045837,-385.86598933,8.555e-05,2]
[421098494,1777041045849,-439.41047523,8.555e-05,2]
[421098495,1777041045936,-6509.26448096,8.555e-05,2]
[421098496,1777041045946,-5553.9616206,8.555e-05,2]
[421098497,1777041045957,-1976.39652943,8.56e-05,2]
[421098498,1777041045968,-2644.64903118,8.56e-05,2]
[421098499,1777041045978,-397.53432266,8.56e-05,2]
[421098500,1777041045989,-150.0,8.564e-05,2]
[421098501,1777041045999,-250.0,8.573e-05,2]
[421098502,1777041046009,-151.0,8.573e-05,2]
[421098503,1777041046019,-101195.30871888,8.576e-05,2]
[421098504,1777041046029,-242.6421653,8.576e-05,2]
[421098505,1777041046039,-500.0,8.576e-05,2]
[421098506,1777041046048,-150.0,8.576e-05,2]
[421098507,1777041046057,-150.0,8.584e-05,2]
[421098508,1777041046068,-150.0,8.588e-05,2]
[421098509,1777041046078,-1680.0,8.595e-05,2]
[421098510,1777041046087,-151.0,8.597e-05,2]
[421098511,1777041046097,-300.0,8.597e-05,2]
[421098512,1777041046107,-420.0,8.597e-05,2]
[421098513,1777041046116,-420.0,8.597e-05,2]
[421098514,1777041046126,-150.0,8.604e-05,2]
[421098515,1777041046135,-150.0,8.624e-05,2]
[421098516,1777041046145,-405.71,8.638e-05,2]
[421098517,1777041046155,-150.0,8.645e-05,2]
[421098518,1777041046164,-150.0,8.665e-05,2]
[421098519,1777041046174,-160.15228364,8.673e-05,2]
[421098520,1777041046183,-210.10537553,8.673e-05,2]
[421098521,1777041046193,-210.08753541,8.673e-05,2]
[421098522,1777041046202,-171.94439832,8.673e-05,2]
[421098523,1777041046212,-500.0,8.673e-05,2]
[421098524,1777041046221,-500.0,8.673e-05,2]
[421098525,1777041046232,-500.53133547,8.673e-05,2]
[421098526,1777041046243,-200.10036174,8.673e-05,2]
[421098527,1777041046252,-500.0,8.673e-05,2]
[421098528,1777041046262,-500.0,8.673e-05,2]
[421098529,1777041046271,-500.0,8.673e-05,2]
[421098530,1777041046281,-500.0,8.673e-05,2]
[421098531,1777041046291,-411.11854101,8.673e-05,2]
[421098532,1777041046300,-500.75597371,8.673e-05,2]
[421098533,1777041046310,-302.79031833,8.673e-05,2]
[421098534,1777041046320,-500.0,8.673e-05,2]
[421098535,1777041046330,-500.0,8.673e-05,2]
[421098536,1777041046339,-500.0,8.673e-05,2]
[421098537,1777041046348,-151.0,8.677e-05,2]
[421098538,1777041046358,-151.0,8.677e-05,2]
[421098539,1777041046369,-4384.34739758,8.677e-05,2]
[421098540,1777041046378,-150.0,8.685e-05,2]
[421098541,1777041046388,-150.0,8.685e-05,2]
[421098542,1777041046397,-296.80478849,8.685e-05,2]
[421098543,1777041046406,-150.00000001,8.685e-05,2]
[421098544,1777041046416,-150.0,8.685e-05,2]
[421098545,1777041046427,-150.0,8.685e-05,2]
[421098546,1777041046438,-152.53389494,8.685e-05,2]
[421098547,1777041046447,-150.0,8.685e-05,2]
[421098548,1777041046457,-150.00000001,8.685e-05,2]
[421098549,1777041046467,-151.0,8.697e-05,2]
[421098550,1777041046477,-151.0,8.697e-05,2]
[421098551,1777041046488,-1063.25963628,8.699e-05,3]
[421098552,1777041046498,-205.287031,8.699e-05,2]
[421098553,1777041046508,-205.287031,8.699e-05,2]
[421098554,1777041046518,-205.287031,8.699e-05,2]
[421098555,1777041046528,-205.287031,8.699e-05,2]
[421098556,1777041046538,-121284.18292068,8.7e-05,2]
[421098558,1777041341884,-500.0,7.657e-05,2]
[421098559,1777041341910,-250.0,7.657e-05,2]
[421098560,1777041442448,8.1385514,7.557e-05,2]
[421098561,1777041883842,-360.8614486,7.557e-05,2]
[421098562,1777041883866,-250.0,7.867e-05,2]
[421098563,1777041883889,-2638.486689,8.178e-05,2]
[421098564,1777041883913,-500.0,8.192e-05,2]
[421098565,1777041883937,-247.0,8.198e-05,2]
[421098566,1777041883960,-18003.6518624,8.199e-05,2]
[421098567,1777041893241,-481.1726376,8.199e-05,2]
[421098568,1777041893265,-280.0,8.219e-05,2]
[421098569,1777041893288,-1100.0,8.22e-05,2]
[421098570,1777041893311,-1200.0,8.22e-05,2]
[421098571,1777041893334,-690.45804203,8.297e-05,2]
[421098572,1777041893357,-150.0,8.297e-05,2]
[421098573,1777041893379,-1000.0,8.298e-05,2]
[421098574,1777041893400,-160.07167188,8.298e-05,2]
[421098575,1777041893424,-259.37000569,8.298e-05,2]
[421098576,1777041893447,-500.0,8.298e-05,2]
[421098577,1777041893471,-500.0,8.298e-05,2]
[421098578,1777041893495,-601.59497376,8.298e-05,2]
[421098579,1777041893518,-500.0,8.298e-05,2]
[421098580,1777041893540,-587.55295338,8.298e-05,2]
[421098581,1777041893562,-335.27463257,8.298e-05,2]
[421098582,1777041893591,-500.0,8.298e-05,2]
[421098583,1777041893615,-355.71476575,8.298e-05,2]
[421098584,1777041893643,-500.0,8.298e-05,2]
[421098585,1777041893671,-500.0,8.298e-05,2]
[421098586,1777041893700,-500.0,8.298e-05,2]
[421098587,1777041893727,-500.0,8.298e-05,2]
[421098588,1777041893754,-500.0,8.298e-05,2]
[421098589,1777041893780,-500.0,8.298e-05,2]
[421098590,1777041893807,-500.0,8.298e-05,2]
[421098591,1777041893834,-265.79741545,8.298e-05,2]
[421098592,1777041893861,-500.0,8.298e-05,2]
[421098593,1777041893888,-500.0,8.298e-05,2]
[421098594,1777041893918,-500.0,8.298e-05,2]
[421098595,1777041893947,-500.0,8.298e-05,2]
[421098596,1777041893976,-500.0,8.298e-05,2]
[421098597,1777041894003,-500.0,8.298e-05,2]
[421098598,1777041894033,-392.17673903,8.298e-05,2]
[421098599,1777041894057,-5640.81616286,8.298e-05,2]
[421098600,1777041903514,-1200.0,8.297e-05,2]
[421098601,1777041903537,-150.0,8.297e-05,2]
[421098602,1777041903562,-642.21474213,8.298e-05,2]
[421098603,1777041903585,-20007.78525787,8.298e-05,2]
[421098604,1777041913006,-22000.0,8.298e-05,2]
[421098605,1777041921234,-22000.0,8.298e-05,2]
[421098618,1777042231823,-1200.0,8.196e-05,2]
[421098619,1777042231838,-70301.3955,8.197e-05,2]
[421098620,1777042231851,-14503.3222,8.198e-05,2]
[421098621,1777042231864,-280.0,8.219e-05,2]
[421098622,1777042231878,-900.0,8.22e-05,2]
[421098623,1777042231891,-512.18429466,8.263e-05,2]
[421098624,1777042231904,-500.0,8.298e-05,2]
[421098625,1777042231917,-350.88601717,8.298e-05,2]
[421098626,1777042231931,-176.0,8.298e-05,3]
[421098627,1777042231943,-167.0,8.298e-05,3]
[421098628,1777042231957,-24175.57506836,8.298e-05,2]
[421098629,1777042231969,-292.93,8.298e-05,2]
[421098630,1777042231982,-150.0,8.298e-05,2]
[421098631,1777042231995,-153.83540176,8.3e-05,2]
[421098632,1777042232008,-1000.0,8.356e-05,2]
[421098633,1777042232020,-500.0,8.356e-05,2]
[421098634,1777042232035,-152.0,8.389e-05,7]
[421098635,1777042232049,-152.0,8.398e-05,7]
[421098636,1777042232062,-1391.48836155,8.399e-05,2]
[421098638,1777042232075,-217.0,8.506e-05,2]
[421098641,1777042232089,-242.0,8.506e-05,2]
[421098643,1777042232103,-292.93,8.572e-05,2]
[421098645,1777042232116,-392.62,8.581e-05,2]
[421098648,1777042232130,-500.2403318,8.673e-05,2]
[421098650,1777042232142,-500.0,8.673e-05,2]
[421098653,1777042232155,-500.0,8.673e-05,2]
[421098655,1777042232169,-181.55900398,8.689e-05,2]
[421098657,1777042232181,-500.0,8.689e-05,2]
[421098660,1777042232193,-500.0,8.689e-05,2]
[421098663,1777042232209,-611.28706736,8.689e-05,2]
[421098666,1777042232222,-271.11648164,8.689e-05,2]
[421098669,1777042232234,-22810.8359347,8.69e-05,2]
[421098673,1777042232248,-151.0,8.697e-05,2]
[421098675,1777042232260,-122430.95807261,8.7e-05,2]
[421098678,1777042232276,-496.2484482,8.7e-05,2]
[421098679,1777042232297,-44812.13444235,8.7e-05,2]
[421098682,1777042237868,-10403.26053241,8.7e-05,2]
[421098683,1777042238129,-55440.70824182,8.7e-05,2]
[421098684,1777042238142,-14860.68728384,8.7e-05,2]
[421098685,1777042238183,-964.30967808,8.7e-05,2]
[421098704,1777042240654,-548.637107,8.7e-05,2]
[421098706,1777042240666,-15410.68488,8.7e-05,2]
[421098710,1777042240703,-363.95831133,8.7e-05,2]
[421098745,1777042242867,-3661.21038667,8.7e-05,2]
[421098746,1777042242876,-500.0,8.7e-05,2]
[421098747,1777042242886,-150.06744683,8.827e-05,2]
[421098748,1777042242895,-150.0,8.827e-05,2]
[421098749,1777042242905,-150.0,8.827e-05,2]
[421098750,1777042242914,-150.0,8.827e-05,2]
[421098751,1777042242923,-150.94681551,8.827e-05,2]
[421098752,1777042242932,-150.0,8.827e-05,2]
[421098753,1777042242942,-150.0,8.827e-05,2]
[421098754,1777042242952,-150.25362654,8.827e-05,2]
[421098755,1777042242962,-150.0,8.827e-05,2]
[421098756,1777042242972,-150.0,8.827e-05,2]
[421098757,1777042242982,-150.23391006,8.834e-05,2]
[421098758,1777042242992,-292.93,8.846e-05,2]
[421098759,1777042243006,-150.0,8.877e-05,2]
[421098760,1777042243015,-150.0,8.968e-05,2]
[421098761,1777042243025,-343.208083,9e-05,3]
[421098762,1777042243037,-456.791917,9e-05,3]
[421098763,1777042243048,-150.0,9.013e-05,2]
[421098764,1777042243058,-187.29416377,9.013e-05,2]
[421098765,1777042243068,-2500.0,9.016e-05,2]
[421098766,1777042243077,-2500.0,9.016e-05,2]
[421098767,1777042243086,-500.0,9.016e-05,2]
[421098768,1777042243096,-300.0,9.016e-05,2]
[421098769,1777042243106,-300.0,9.016e-05,2]
[421098770,1777042243115,-300.0,9.016e-05,2]
[421098771,1777042243125,-361.59655683,9.016e-05,2]
[421098772,1777042243134,-2500.0,9.016e-05,2]
[421098773,1777042243145,-250.0,9.016e-05,2]
[421098774,1777042243156,-1101.0,9.016e-05,2]
[421098775,1777042243166,-250.0,9.018e-05,2]
[421098776,1777042243175,-2500.0,9.018e-05,2]
[421098777,1777042243185,-250.0,9.018e-05,2]
[421098778,1777042243197,-150.0,9.024e-05,2]
[421098779,1777042243207,-150.0,9.073e-05,2]
[421098780,1777042243217,-150.0,9.073e-05,2]
[421098781,1777042243227,-1142.0,9.106e-05,5]
[421098782,1777042243236,-150.0,9.108e-05,2]
[421098784,1777042243247,-292.93,9.12e-05,2]
[421098785,1777042243257,-150.0,9.123e-05,2]
[421098786,1777042243267,-1806.18241031,9.128e-05,2]
[421098787,1777042243276,-255.0,9.128e-05,2]
[421098788,1777042243286,-150.0,9.154e-05,2]
[421098789,1777042243296,-174.61919141,9.211e-05,2]
[421098791,1777042243305,-695.39793187,9.211e-05,2]
[421098792,1777042243315,-7828.38992526,9.211e-05,2]
[421098793,1777042243332,-1382.95806459,9.211e-05,2]
[421098794,1777042243342,-200.0,9.211e-05,2]
[421098795,1777042243352,-160.0,9.211e-05,2]
[421098796,1777042243362,-324.54958468,9.211e-05,2]
[421098797,1777042243374,-344.10227289,9.211e-05,2]
[421098798,1777042243384,-201.93286099,9.211e-05,2]
[421098799,1777042243394,-151.1837373,9.211e-05,2]
[421098800,1777042243408,-578.20924308,9.211e-05,2]
[421098801,1777042243417,-227.34163157,9.211e-05,2]
[421098802,1777042243427,-46.97111629,9.211e-05,2]
[421098810,1777042245934,-152.0,8.811e-05,7]
[421098811,1777042245945,-188.78215565,9.211e-05,2]
[421098812,1777042245958,-201.93286099,9.211e-05,2]
[421098813,1777042245968,-244.476143,9.211e-05,2]
[421098814,1777042245978,-253.52176029,9.211e-05,2]
[421098815,1777042245988,-262.90206542,9.211e-05,2]
[421098816,1777042245998,-117.95388965,9.211e-05,2]
[421098817,1777042246015,-621.38668591,9.211e-05,2]
[421098818,1777042246028,-638.08225103,9.211e-05,2]
[421098819,1777042246037,-272.62944185,9.211e-05,2]
[421098820,1777042246047,-282.71673119,9.211e-05,2]
[421098821,1777042246057,-293.17725025,9.211e-05,2]
[421098822,1777042246066,-304.02480851,9.211e-05,2]
[421098823,1777042246075,-315.27372642,9.211e-05,2]
[421098824,1777042246085,-326.9388543,9.211e-05,2]
[421098825,1777042246095,-339.03559191,9.211e-05,2]
[421098826,1777042246104,-152.0,9.211e-05,2]
[421098827,1777042246113,-152.0,9.211e-05,2]
[421098828,1777042246123,-152.0,9.211e-05,2]
[421098829,1777042246133,-272.26766677,9.211e-05,2]
[421098830,1777042246142,-279.9045709,9.211e-05,2]
[421098831,1777042246152,-151.0,9.211e-05,2]
[421098832,1777042246162,-201.93286099,9.211e-05,2]
[421098833,1777042246172,-743.50770149,9.211e-05,2]
[421098834,1777042246182,-150.0,9.22e-05,2]
[421098835,1777042246196,-1000.0,9.221e-05,2]
[421098836,1777042246206,-500.0,9.221e-05,2]
[421098837,1777042246216,-150.0,9.248e-05,2]
[421098838,1777042246226,-3108.95052882,9.266e-05,2]
[421098839,1777042246239,-2933.66258896,9.266e-05,2]
[421098840,1777042246251,-1588.671315,9.266e-05,2]
[421098841,1777042246267,-1920.88343269,9.266e-05,2]
[421098842,1777042246277,-150.0,9.318e-05,2]
[421098843,1777042246287,-150.0,9.318e-05,2]
[421098844,1777042246297,-126.46656731,9.318e-05,2]
[421098845,1777042246309,-23.53343269,9.318e-05,2]
[421098846,1777042246319,-9905.5980765,9.321e-05,2]
[421098847,1777042246329,-1349.0,9.33e-05,2]
[421098848,1777042246339,-1048.0,9.33e-05,2]
[421098849,1777042246348,-623.0,9.33e-05,2]
[421098850,1777042246358,-3531.0,9.33e-05,2]
[421098851,1777042246368,-1266.0,9.33e-05,2]
[421098852,1777042246377,-1229.979,9.33e-05,2]
[421098853,1777042246387,-416.0,9.33e-05,2]
[421098854,1777042246397,-1332.0,9.33e-05,2]
[421098855,1777042246407,-2477.939,9.33e-05,2]
[421098856,1777042246419,-6032.0,9.33e-05,2]
[421098857,1777042246429,-150.0,9.37e-05,2]
[421098858,1777042246439,-10272.10520533,9.376e-05,2]
[421098859,1777042246450,-150.0,9.388e-05,2]
[421098860,1777042246460,-151.0,9.393e-05,2]
[421098861,1777042246470,-292.95165364,9.394e-05,2]
[421098862,1777042246480,-114806.8013426,9.396e-05,2]
[421098863,1777042246490,-151.0,9.396e-05,2]
[421098864,1777042246500,-151.0,9.396e-05,2]
[421098865,1777042246510,-151.0,9.396e-05,2]
[421098866,1777042246520,-164.229625,9.396e-05,2]
[421098867,1777042246530,-164.229625,9.396e-05,2]
[421098868,1777042246540,-164.229625,9.396e-05,2]
[421098869,1777042246551,-164.229625,9.396e-05,2]
[421098870,1777042246561,-151.0,9.396e-05,2]
[421098871,1777042246573,-151.0,9.396e-05,2]
[421098872,1777042246583,-151.0,9.396e-05,2]
[421098873,1777042246593,-200.0,9.398e-05,2]
[421098874,1777042246603,-210.44,9.4e-05,2]
[421098875,1777042246613,-4900.267,9.404e-05,2]
[421098876,1777042246623,-338.006,9.404e-05,2]
[421098877,1777042246634,-150.0,9.416e-05,2]
[421098878,1777042246644,-10652.17309792,9.431e-05,2]
[421098879,1777042246654,-150.0,9.441e-05,2]
[421098880,1777042246665,-150.0,9.481e-05,2]
[421098881,1777042246677,-4423.76236453,9.486e-05,2]
[421098883,1777042246688,-161.0,9.5e-05,2]
[421098884,1777042246698,-161.0,9.5e-05,2]
[421098885,1777042246709,-2228.0,9.5e-05,2]
[421098886,1777042246720,-160.0,9.502e-05,2]
[421098887,1777042246731,-162.24500663,9.502e-05,2]
[421098888,1777042246742,-350.0,9.506e-05,2]
[421098889,1777042246751,-150.0,9.528e-05,2]
[421098890,1777042246761,-150.0,9.563e-05,2]
[421098891,1777042246771,-150.0,9.563e-05,2]
[421098892,1777042246781,-350.0,9.58e-05,3]
[421098893,1777042246790,-900.0,9.59e-05,2]
[421098894,1777042246800,-2000.0,9.6e-05,2]
[421098895,1777042246810,-150.0,9.612e-05,2]
[421098896,1777042246820,-150.0,9.616e-05,2]
[421098897,1777042246830,-1239.2563458,9.651e-05,2]
[421098898,1777042246840,-150.0,9.668e-05,2]
[421098899,1777042246849,-217.617429,9.692e-05,2]
[421098900,1777042246859,-175.658223,9.692e-05,2]
[421098901,1777042246868,-186.731924,9.692e-05,2]
[421098902,1777042246889,-280.522467,9.692e-05,2]
[421098903,1777042246899,-283.201371,9.692e-05,2]
[421098904,1777042246910,-226.434427,9.692e-05,2]
[421098905,1777042246920,-350.0,9.715e-05,2]
[421098906,1777042246930,-1000.0,9.726e-05,2]
[421098907,1777042246939,-181.08010149,9.759e-05,2]
[421098908,1777042246949,-200.0,9.759e-05,2]
[421098909,1777042246959,-693.3919763,9.759e-05,2]
[421098910,1777042246969,-209.40437684,9.759e-05,2]
[421098911,1777042246979,-209.40437684,9.759e-05,2]
[421098912,1777042246990,-1428.38747117,9.759e-05,2]
[421098913,1777042247000,-290.26104003,9.759e-05,2]
[421098914,1777042247011,-156.587,9.759e-05,2]
[421098915,1777042247021,-771.01748645,9.759e-05,2]
[421098916,1777042247031,-505.10055824,9.768e-05,2]
[421098917,1777042247042,-5089.7854752,9.792e-05,2]
[421098918,1777042247052,-5912.90392442,9.8e-05,2]
[421098919,1777042247063,-3811.0,9.8e-05,2]
[421098920,1777042247073,-292.09551466,9.808e-05,2]
[421098921,1777042247083,-150.00000001,9.808e-05,2]
[421098922,1777042247093,-150.8431173,9.808e-05,2]
[421098923,1777042247104,-150.53124198,9.808e-05,2]
[421098924,1777042247114,-229.15582108,9.808e-05,2]
[421098925,1777042247124,-151.83856087,9.808e-05,2]
[421098926,1777042247133,-271.31136748,9.808e-05,2]
[421098927,1777042247143,-500.0,9.863e-05,2]
[421098928,1777042247154,-500.0,9.863e-05,2]
[421098929,1777042247165,-500.81276679,9.863e-05,2]
[421098930,1777042247176,-500.0,9.863e-05,2]
[421098931,1777042247187,-637.99582549,9.863e-05,2]
[421098932,1777042247197,-351.50145438,9.863e-05,2]
[421098933,1777042247207,-500.0,9.863e-05,2]
[421098934,1777042247217,-230.745701,9.863e-05,2]
[421098935,1777042247228,-164.229625,9.863e-05,2]
[421098936,1777042247239,-164.229625,9.863e-05,2]
[421098937,1777042247250,-164.229625,9.863e-05,2]
[421098938,1777042247260,-164.229625,9.863e-05,2]
[421098939,1777042247270,-150.0,9.863e-05,2]
[421098940,1777042247281,-33841.0,9.863e-05,2]
[421098941,1777042247292,-10237.0,9.863e-05,2]
[421098942,1777042247303,-250.0,9.89e-05,2]
[421098943,1777042247316,-1074.0,9.89e-05,5]
[421098944,1777042247326,-27629.78447534,9.89e-05,3]
[421098972,1777043119538,10000.0,8e-05,10]
[421098973,1777043126736,10000.0,8e-05,10]
[421098974,1777043139813,5859.81,8e-05,10]
[421098984,1777043433165,-394.59392826,7.888e-05,2]
[421098985,1777043433175,-253.0,7.888e-05,2]
[421098986,1777043433184,-250.0,7.963e-05,2]
[421098987,1777043433193,-250.0,8.068e-05,2]
[421098988,1777043433202,-847.0,8.097e-05,2]
[421098989,1777043433211,-300.0,8.097e-05,2]
[421098990,1777043433220,-300.0,8.097e-05,2]
[421098991,1777043433230,-869.52579297,8.097e-05,2]
[421098992,1777043433241,-330.47420703,8.097e-05,2]
[421098993,1777043433252,-300.0,8.097e-05,2]
[421098994,1777043433261,-29847.1472,8.098e-05,2]
[421098995,1777043433270,-297.87696242,8.188e-05,2]
[421098996,1777043433279,-280.0,8.219e-05,2]
[421098997,1777043433288,-800.0,8.22e-05,2]
[421098998,1777043433297,-900.0,8.356e-05,2]
[421098999,1777043433307,-209.10487366,8.673e-05,2]
[421099000,1777043433316,-150.0,8.676e-05,2]
[421099001,1777043433325,-2500.0,8.677e-05,2]
[421099002,1777043433334,-2500.0,8.677e-05,2]
[421099003,1777043433343,-300.0,8.677e-05,2]
[421099004,1777043433352,-300.0,8.677e-05,2]
[421099005,1777043433362,-300.0,8.677e-05,2]
[421099006,1777043433372,-361.59655683,8.677e-05,2]
[421099007,1777043433381,-1806.18241031,8.677e-05,2]
[421099008,1777043433390,-500.0,8.677e-05,2]
[421099009,1777043433400,-2500.0,8.677e-05,2]
[421099010,1777043433409,-2500.0,8.677e-05,2]
[421099011,1777043433418,-2500.0,8.677e-05,2]
[421099012,1777043433428,-250.0,8.677e-05,2]
[421099013,1777043433438,-27288.34464537,8.7e-05,2]
[421099014,1777043433449,-14041.64561593,8.7e-05,2]
[421099015,1777043433562,-556.79493899,8.7e-05,2]
[421099016,1777043433692,-558.74,8.7e-05,2]
[421099017,1777043433945,-719.8274763,8.7e-05,2]
[421099018,1777043434038,-8898.84381711,8.7e-05,2]
[421099019,1777043434058,-544.144535,8.7e-05,2]
[421099024,1777043438212,-679.63,8.7e-05,2]
[421099025,1777043438372,-38496.16045192,8.7e-05,2]
[421099026,1777043438429,-49323.7881466,8.7e-05,2]
[421099027,1777043438445,-174.38,8.77e-05,2]
[421099028,1777043438459,-150.0,8.877e-05,2]
[421099029,1777043438474,-268.41415439,8.877e-05,2]
[421099030,1777043438488,-150.0,8.877e-05,2]
[421099031,1777043438502,-150.0,8.877e-05,2]
[421099032,1777043438517,-150.0,8.877e-05,2]
[421099033,1777043438531,-150.0,8.877e-05,2]
[421099034,1777043438547,-150.0,8.877e-05,2]
[421099035,1777043438561,-201.53869495,8.877e-05,2]
[421099036,1777043438574,-150.0,8.877e-05,2]
[421099037,1777043438588,-150.0,8.877e-05,2]
[421099040,1777043438602,-150.0,8.891e-05,2]
[421099042,1777043438618,-150.0,8.905e-05,2]
[421099044,1777043438632,-420.0,8.907e-05,2]
[421099047,1777043438646,-1101.0,8.907e-05,2]
[421099049,1777043438660,-150.0,8.919e-05,2]
[421099051,1777043438673,-150.0,8.933e-05,2]
[421099053,1777043438687,-150.0,8.947e-05,2]
[421099055,1777043438699,-150.0,8.961e-05,2]
[421099058,1777043438714,-150.0,8.975e-05,2]
[421099060,1777043438728,-150.0,8.989e-05,2]
[421099062,1777043438741,-150.0,9.004e-05,2]
[421099065,1777043438755,-150.0,9.018e-05,2]
[421099067,1777043438768,-150.0,9.032e-05,2]
[421099069,1777043438782,-500.0,9.046e-05,2]
[421099072,1777043438797,-150.0,9.046e-05,2]
[421099074,1777043438810,-150.0,9.06e-05,2]
[421099076,1777043438823,-578.20924308,9.073e-05,2]
[421099079,1777043438836,-200.0,9.073e-05,2]
[421099081,1777043438850,-390.7280028,9.073e-05,2]
[421099083,1777043438867,-304.66992907,9.073e-05,2]
[421099086,1777043438881,-9211.34798985,9.073e-05,2]
[421099088,1777043438894,-201.93286099,9.073e-05,2]
[421099090,1777043438908,-1377.42282659,9.073e-05,2]
[421099093,1777043438921,-151.0,9.073e-05,2]
[421099095,1777043438934,-743.50770149,9.073e-05,2]
[421099097,1777043438947,-152.0,9.073e-05,2]
[421099099,1777043438960,-152.0,9.073e-05,2]
[421099102,1777043438974,-152.0,9.073e-05,2]
[421099104,1777043438988,-272.26766677,9.073e-05,2]
[421099106,1777043439002,-227.34163157,9.073e-05,2]
[421099109,1777043439015,-235.75327194,9.073e-05,2]
[421099112,1777043439040,-244.476143,9.073e-05,2]
[421099115,1777043439058,-253.52176029,9.073e-05,2]
[421099117,1777043439075,-262.90206542,9.073e-05,2]
[421099120,1777043439095,-272.62944185,9.073e-05,2]
[421099123,1777043439111,-282.71673119,9.073e-05,2]
[421099125,1777043439129,-174.61919141,9.073e-05,2]
[421099128,1777043439145,-188.57807241,9.073e-05,2]
[421099131,1777043439173,-165.87728676,9.073e-05,2]
[421099133,1777043439187,-668.65185758,9.073e-05,2]
[421099136,1777043439202,-201.93286099,9.073e-05,2]
[421099138,1777043439215,-49.97749517,9.073e-05,2]